Cogmind - Beta 13 @@@ ROGUE MODE // 2024.04.02 @ 12:26:03 Player: Sony PS2 Result: Destroyed by G-34 Mercenary with Small Laser Performance ------------- Evolutions (1) 500 Regions Visited (3) 600 Robots Destroyed (15) 75 Value Destroyed (385) 385 Prototype IDs (1) 20 Alien Tech Used (0) 0 Bonus (0) 0 TOTAL SCORE: 1580 Bonus ------- None Cogmind --------- Core Integrity 0/400 Matter 244/300 Energy 91/250 System Corruption 2% Temperature Cool (39) Movement Core (200) Ox3 Location -9/Materials Parts ------- > --- POWER (1) -------- Ion Engine > --- PROPULSION (3) --- (None) > --- UTILITY (2) ------ Targeting Computer Targeting Computer > --- WEAPON (3) ------- Autogun Autogun > --- INVENTORY (5) ---- Heat Sink Small Storage Unit Light Armor Plating Light Armor Plating Grenade Launcher Peak State ------------ > --- POWER ------------ Light Ion Engine > --- PROPULSION ------- Improved Hover Unit Improved Hover Unit Improved Hover Unit > --- UTILITY ---------- Targeting Computer Targeting Computer > --- WEAPON ----------- Improved EM Shotgun Assault Rifle Heavy Assault Rifle > --- INVENTORY -------- Heat Sink Small Storage Unit Light Armor Plating Light Armor Plating Grenade Launcher [Rating: 15] Favorites ----------- Power Light Ion Engine Engine Light Ion Engine Propulsion Aluminum Leg Leg Aluminum Leg Hover Unit Improved Hover Unit Flight Unit Flight Unit Utility Targeting Computer Device Heat Sink Storage Small Storage Unit Processor Targeting Computer Weapon Assault Rifle Energy Gun Improved EM Shotgun Ballistic Gun Assault Rifle Build | -11 -10 -10 -9 ------- Run | Yrd Mat Min Mat Slots Evolved 2 | . . . 2 Power . | . . . . Propulsion 1 | . . . 1 Utility . | . . . . Weapon 1 | . . . 1 Parts Attached 27 | 7 5 . 15 Power 3 | 1 . . 2 Engine 3 | 1 . . 2 Core . | . . . . Reactor . | . . . . Propulsion 9 | 2 2 . 5 Treads . | . . . . Leg 2 | 2 . . . Wheel . | . . . . Hover 3 | . . . 3 Flight 4 | . 2 . 2 Utility 4 | 1 2 . 1 Device 1 | 1 . . . Storage 1 | . 1 . . Processor 2 | . 1 . 1 Hackware . | . . . . Protection . | . . . . Artifact . | . . . . Weapon 11 | 3 1 . 7 Energy Gun 1 | . . . 1 Energy Cannon . | . . . . Ballistic Gun 10 | 3 1 . 6 Ballistic Cannon . | . . . . Launcher . | . . . . Special Weapon . | . . . . Impact Weapon . | . . . . Slashing Weapon . | . . . . Piercing Weapon . | . . . . Special Melee Weapon . | . . . . Unidentified Prototypes 1 | . . . 1 Parts Lost 7 | . . . 7 Power 1 | . . . 1 Propulsion 3 | . . . 3 Utility . | . . . . Weapon 3 | . . . 3 Highest Loss Streak 6 | . . . 6 To Critical Strikes . | . . . . Average Slot Usage (%) 87 | . 97 85 82 Engine 11 | . 14 14 9 Leg 7 | . 25 . . Hover 7 | . . . 14 Flight 11 | . 3 28 11 Storage 3 | . 13 . . Processor 16 | . 13 14 18 Energy Gun 5 | . . . 10 Ballistic Gun 22 | . 27 28 18 Naked Turns . | . . . . Heaviest Build 14 | 8 12 7 14 Greatest Support 21 | 20 20 8 21 Greatest Overweight (x) 2 | . 2 . 1 Average Overweight (x) . | . . . . Largest Inventory Capacity 8 | 5 8 5 5 Average Capacity 5 | 5 7 5 5 Most Carried 8 | 5 8 4 5 Average Carried 4 | 2 6 4 4 Final Capacity 5 | 5 5 5 5 Final Carried 5 | 3 4 4 5 Class Distribution -------------------- 65% | Mutant 21% | Gunner 13% | Sprinter Dominant Class ---------------- Mutant | -10/Materials Mutant | -10/Mines Gunner | -9/Materials Resources | -11 -10 -10 -9 ----------- Run | Yrd Mat Min Mat Matter Collected 616 | 266 26 38 286 Remotely . | . . . . Salvage Created 557 | 50 44 . 463 Parts 40 | 2 3 . 35 Haulers Intercepted . | . . . . Recyclers Shooed . | . . . . Parts Field Recycled . | . . . . Retrieved Matter . | . . . . Parts Self-Destructed . | . . . . Prevented . | . . . . Kills | -11 -10 -10 -9 ------- Run | Yrd Mat Min Mat Combat Hostiles Destroyed 11 | 1 3 . 7 Guns 11 | 1 3 . 7 Classes Destroyed 6 | 1 1 . 4 Worker 1 | . . . 1 Recycler 1 | . . . 1 Watcher 2 | . . . 2 Swarmer 3 | . 3 . . Grunt 4 | 1 . . 3 Sentry 4 | . . . 4 Best Kill Streak 6 | 1 3 . 6 Combat Bots Only 3 | 1 3 . 3 Max Kills in Single Turn 2 | 1 1 . 2 Gunslinging . | . . . . Exploded . | . . . . Melee . | . . . . Uniques/NPCs Destroyed . | . . . . Combat | -11 -10 -10 -9 -------- Run | Yrd Mat Min Mat Hostile Shots Fired 143 | 1 23 4 115 Missed 41 | 1 5 1 34 Damage Taken 1321 | . 139 31 1151 Core 428 | . 15 11 402 Absorbed by Shields . | . . . . Core Remaining (%) 94 | 100 . 89 . Volleys Fired 38 | 1 8 2 27 Largest 3 | 2 2 2 3 Hottest 91 | 40 40 40 91 Shots Fired 86 | 2 16 4 64 Gun 86 | 2 16 4 64 Cannon . | . . . . Launcher . | . . . . Special . | . . . . Kinetic 76 | 2 16 4 54 Thermal . | . . . . Explosive . | . . . . Electromagnetic 10 | . . . 10 Robot Hit Streak 11 | 2 1 1 11 Robot Miss Streak 3 | . 3 2 2 Penetration Max . | . . . . Secondary Targets 5 | . 2 . 3 Max Gunslinging Chain 1 | . 1 . 1 Shots Hit Robots 53 | 2 6 1 44 Core Hits 26 | 2 3 . 21 Critical Kills 1 | . . . 1 Critical Parts Destroyed . | . . . . Critical Strikes 1 | . . . 1 Destroy 1 | . . . 1 Melee Attacks . | . . . . Impact . | . . . . Slashing . | . . . . Piercing . | . . . . Sneak Attacks . | . . . . Combat Hostiles . | . . . . Follow-up Attacks . | . . . . Damage Inflicted 913 | 27 79 13 794 Guns 810 | 27 79 13 691 Cannons . | . . . . Explosions 100 | . . . 100 Melee . | . . . . Ramming 3 | . . . 3 Kinetic 625 | 27 79 13 506 Thermal 100 | . . . 100 Explosive . | . . . . Electromagnetic 185 | . . . 185 Impact . | . . . . Slashing . | . . . . Piercing . | . . . . Highest Corruption 2 | . . . 2 Average Corruption 2 | . . . 2 Corruption Purged . | . . . . Corruption Blocked . | . . . . Effects 1 | . . . 1 Parts Fused 1 | . . . 1 Overload Shots . | . . . . Overflow Damage . | . . . . Projectiles . | . . . . Explosions . | . . . . Melee . | . . . . Knockbacks . | . . . . Impact . | . . . . Kinetic . | . . . . Secondary . | . . . . Self-Inflicted Damage 29 | . . . 29 Shots 1 | . . . 1 Rammed 3 | . . . 3 Targets Rammed 3 | . . . 3 Kicked . | . . . . Crushed . | . . . . Highest Temperature 234 | . . 1 234 Average Temperature 63 | . . 1 66 Received Heat Transfer 528 | . . 18 510 Siege Activations . | . . . . Robots Corrupted . | . . . . Combat Hostiles . | . . . . Parts Fried . | . . . . Impact Corruptions . | . . . . Robots Melted . | . . . . Combat Hostiles . | . . . . Parts Melted . | . . . . Heat Transferred 100 | . . . 100 Parts Sabotaged . | . . . . Parts Stolen . | . . . . Parts Stripped . | . . . . Power Chain Reactions 1 | . . . 1 Alert | -11 -10 -10 -9 ------- Run | Yrd Mat Min Mat Peak Influence 236 | 20 98 37 236 Initial 37 | . 13 37 14 Average 53 | 4 34 37 87 Maximum Alert Level 1 | . . . 1 Low Security (%) 90 | 100 100 100 79 Level 1 9 | . . . 20 Level 2 . | . . . . Level 3 . | . . . . Level 4 . | . . . . Level 5 . | . . . . High Security . | . . . . Max Security . | . . . . Squads Dispatched 2 | . . 1 1 Investigation 1 | . . 1 . Extermination . | . . . . Reinforcement 1 | . . . 1 Assault . | . . . . Garrison . | . . . . Intercept . | . . . . Searches Triggered . | . . . . Construction Impeded . | . . . . Haulers Reinforced . | . . . . Active Scanning Responses . | . . . . Cargo Convoy Interrupts . | . . . . Stealth | -11 -10 -10 -9 --------- Run | Yrd Mat Min Mat Distress Signals 2 | . . . 2 Communications Jammed . | . . . . Distress Signals . | . . . . Times Spotted 23 | 1 4 1 17 Peak Tracking Total 7 | . 4 1 7 Tactical Retreats 2 | . . . 2 Traps | -11 -10 -10 -9 ------- Run | Yrd Mat Min Mat Traps Triggered . | . . . . Indirectly . | . . . . Trap Hack Attempts . | . . . . Triggered . | . . . . Disarmed . | . . . . Reprogrammed . | . . . . Reused . | . . . . Traps Extracted . | . . . . Installed . | . . . . Triggered . | . . . . Machines | -11 -10 -10 -9 ---------- Run | Yrd Mat Min Mat Machines Disabled . | . . . . Max in Single Turn . | . . . . Machines Repaired . | . . . . Machines Dismantled . | . . . . Machines Sabotaged . | . . . . Overloaded Fab Kills . | . . . . Hacking | -11 -10 -10 -9 --------- Run | Yrd Mat Min Mat Machines Accessed 2 | . . 1 1 Terminals 1 | . . . 1 Fabricators . | . . . . Repair Stations . | . . . . Recycling Units . | . . . . Scanalyzers . | . . . . Garrison Access . | . . . . Total Hacks 3 | . . 1 2 Successful 3 | . . 1 2 Failed . | . . . . Catastrophic . | . . . . Database Lockouts . | . . . . Manual . | . . . . Terminals 2 | . . . 2 Fabricators . | . . . . Repair Stations . | . . . . Recycling Units . | . . . . Scanalyzers . | . . . . Garrison Access . | . . . . Terminal Hacks 3 | . . 1 2 Open Door 1 | . . 1 . Alert Level 1 | . . . 1 Unreport Threat 1 | . . . 1 Fabricator Hacks . | . . . . Repair Station Hacks . | . . . . Recycling Unit Hacks . | . . . . Scanalyzer . | . . . . Garrison Access Hacks . | . . . . Unauthorized Hacks . | . . . . Terminals . | . . . . Fabricators . | . . . . Repair Stations . | . . . . Recycling Units . | . . . . Scanalyzers . | . . . . Garrison Access . | . . . . Data Cores Recovered . | . . . . Used . | . . . . Hacking Detections 1 | . . . 1 Full Trace Events . | . . . . Feedback Events . | . . . . Feedback Blocked . | . . . . Robot Schematics Acquired . | . . . . Robots Built . | . . . . Authchips . | . . . . Time . | . . . . Total Robot Build Rating . | . . . . Part Schematics Acquired . | . . . . Parts Built . | . . . . Authchips . | . . . . Time . | . . . . Total Part Build Rating . | . . . . Parts Repaired . | . . . . Time . | . . . . Parts Recycled . | . . . . Recycled Matter . | . . . . Retrieved Matter . | . . . . Retrieved Components . | . . . . Parts Scanalyzed . | . . . . Part Schematics Acquired . | . . . . Parts Damaged . | . . . . Bothacking | -11 -10 -10 -9 ------------ Run | Yrd Mat Min Mat Used RIF Installer . | . . . . Robots Hacked . | . . . . Non-combat . | . . . . Combat . | . . . . Robot Hacks Applied . | . . . . Relay Couplers Released . | . . . . Fabnet Peak Effective % . | . . . . Robots Rewired . | . . . . Allies Hacked . | . . . . Hacks Repelled . | . . . . Allies | -11 -10 -10 -9 -------- Run | Yrd Mat Min Mat Total Allies . | . . . . Largest Group . | . . . . Highest-Rated Group . | . . . . Highest-Rated Ally . | . . . . Total Orders . | . . . . Ally Attacks . | . . . . Total Damage . | . . . . Kills . | . . . . Allies Corrupted . | . . . . Allies Melted . | . . . . Intel | -11 -10 -10 -9 ------- Run | Yrd Mat Min Mat Robot Analysis Total . | . . . . Derelict Logs Recovered . | . . . . Drone Launches . | . . . . Drone Recoveries . | . . . . Exploration | -11 -10 -10 -9 ------------- Run | Yrd Mat Min Mat Turns Passed 558 | 91 147 66 254 Spaces Moved 696 | 92 100 161 343 Core 68 | 54 . . 14 Treads . | . . . . Legs 115 | 38 77 . . Wheels . | . . . . Hover 107 | . . . 107 Flight 406 | . 23 161 222 Fastest Speed 32 | 50 37 37 32 Average Speed 54 | 78 105 37 41 Slowest Speed 210 | 120 210 37 120 Overloaded Moves . | . . . . Propulsion Burnouts . | . . . . Robots Hopped 1 | . . 1 . Cave-ins Triggered . | . . . . Exploration Rate (%) 26 | 6 26 45 30 Regions Visited 3 Branch Regions 1 Pre-discovered Areas . | . . . . Known Exits Taken . | . . . . Unknown Exits Taken 3 | 1 1 1 . Scrap Searched 1 | . . 1 . Spaces Dug . | . . . . Terrain Destroyed 3 | . . . 3 Melee . | . . . . Projectile . | . . . . AOE 3 | . . . 3 Terrain Rammed . | . . . . Walls Destroyed . | . . . . Machines Disabled . | . . . . Actions | -11 -10 -10 -9 --------- Run | Yrd Mat Min Mat Total 799 | 108 127 161 403 Wait . | . . . . Move 691 | 91 99 158 343 Hop 1 | . . 1 . Pick Up 22 | 9 7 . 6 Fast Attach 5 | . 1 . 4 Attach 11 | 6 2 . 3 Detach 2 | . 1 . 1 Swap 11 | 1 2 . 8 Drop 15 | . 7 . 8 Fire 38 | 1 8 2 27 Melee . | . . . . Ram 3 | . . . 3 Kick . | . . . . Crush . | . . . . Escape Stasis . | . . . . Rewire . | . . . . Trap . | . . . . Miscellaneous . | . . . . Route ------- -11/Scrapyard -10/Materials (discovered 2 exits: *Min x2) -10/Mines -9/Materials History --------- Turn | Location | Event 2 | -11/Scrapyard | Met Revision 17 64 | -11/Scrapyard | Discovered new exit (range 8) 92 | -11/Scrapyard | Entered Materials 179 | -10/Materials | Discovered new exit (range 13) 232 | -10/Materials | Discovered new exit (range 16) 239 | -10/Materials | Entered Mines 288 | -10/Mines | Discovered new exit (range 15) 296 | -10/Mines | Met a Derelict shopkeep closing up shop 305 | -10/Mines | Entered Materials 305 | -9/Materials | Evolved 2 slots: Propulsion x1, Weapon x1 541 | -9/Materials | Core integrity fell below 50% 552 | -9/Materials | Core integrity fell below 20% 559 | -9/Materials | Destroyed by G-34 Mercenary with Small Laser Last Messages --------------- G-34 Mercenary destroyed. Switching to secondary target: Y-45 Defender. Imp. Hover Unit destroyed. Autogun destroyed. Imp. EM Shotgun destroyed. Autogun destroyed. Connecting with Terminal... >>Alert(Check) Current Alert Level: Low Security [Achievement: Everything Is Under Control] >>Alert(Purge) Purged threat record, alert level lowered. G-34 Mercenary destroyed. Acquired Autogun. Y-45 Defender destroyed. Switching to secondary target: Y-45 Defender. Acquired Ion Engine. [Achievement: Crack Shot] Y-45 Defender destroyed. Acquired 60 matter. Map ----- +----------------------------------------------------+ | | | | | | | | | | | ?????????????????????????????????????????????????? | | ?????????????????????###########?????????????????? | | ?????????????????????# #?????????????????? | | ?????????????????????# ################### | | ?????????????????????# + | | ?????????????????????# ########### | | ?????????????????????###########??# # | | ??????????????????????????????????# """ # | | ??????????????????????????????????#! "Y" # ##### | | ??????????????????????????????????# " " + #??## | | ??????????????????????????????????# # #??# | | ??????????????????????????????????# # #??#" | | ???????????????????????????????########### #??#" | | ???????????????????????????????# # #??#" | | ???????????????????????????????# # #??# | | ???????????????????###########?# """ # #??# | | ???????????????????# #?# """"" ] + ##### | | ???????????????????#" #?# """"" # | | ???????????????????#T [ #?# """"" # | | ???????????????????#" ![[= #?# """ # | | ???????????????????# *%@%! #?# # ##### | | ???????????????????# !![[= #?########### # | | ??????????????????## ==ggg#??# # # | | ??????????????????# [!! #??# """ + # | | ??????????????????#####+####+#??# """ # # | | ????????????????##### [?# #??# """ # + " " | | ????????????? =%## #??# # # "R" | | ????????????? #??# """ # # """ | | ?????????????! ## #??# """ # # | | ????????????????##### ## #??# """ # ##### | | ????????????????????## ### #??# # | | ?????????????????????# ###+############# | | ?????????????????????# ## #?????# | | ?????????????????????# ## #?????# | | ????????????????????## ## #???####+###### | | ????????????????????# # #???# #? | | ????????????????????# # """ #???# #? | | ????????????????????# + """"" #???# #? | | ????????????????????# # """"" #???# #? | | ????????????????????# # """"" #???# """ ## | | ????????????????????## ## """ ?????# """"" + | | ?????????????????????# ########??????# """"" ## | | ????????????????????## =!############### """"" #? | | ????????????????????#"![=!* !! *=! + """ #? | | ????????????????????#%!* ########################? | +----------------------------------------------------+ Best States ------------- Heat Dissipation 35 Energy Generation 10 Energy Capacity 250 Matter Stores 300 Matter Capacity 300 Sight Range 16 Terrain Scan Density 10 Evasion (%) 63 Targeting Accuracy 10 Item Schematics ----------------- None Robot Schematics ------------------ None Fabricated ------------ Nothing Alien Tech Used ----------------- None Achievements -------------- Crack Shot Everything Is Under Control Risk Taker Challenges ------------ None Game ------ Seed SubatomicShadingTube Manual? 0 Play Time 00:14:03 Cumulative 0.7 hours Start 2024.04.02 @ 12:12:59 End 2024.04.02 @ 12:26:03 Sessions 1 Manual Loads 0 Difficulty Rogue Special Mode None Game No. 3 Rogue 3 Adventurer 0 Explorer 0 Win Type - Total 0 Types 0/0/0/0/0/0/0/0/0 Lore% 0 Gallery% 3 Achievement% 3 Wizard Run 0 Options --------- Layout 1 ASCII 0 Keyboard 0 Movement Mouse Keybinds 0 Fullscreen 1 Font 24/Terminus Map View 50x35 Zoom Use 0% Tactical HUD 0 Map Filters NONE Filters NONE Steam 1 RUN: 012dc36c-e5d6-401a-8f48-b56ffc62d3c1